bitfinex-derivatives/quotes_BTCF0:USTF0_20250505
["timestamp","ask_amount","ask_price","bid_price","bid_amount"]
[1746485443029,0.3852895,95076.0,95075.0,0.8320517]
[1746485443325,0.3852895,95076.0,95075.0,0.8330517]
[1746485444226,0.3852895,95076.0,95075.0,0.8340517]
[1746485444729,0.3313895,95076.0,95075.0,0.8330517]
[1746485445022,0.121,95076.0,95075.0,0.8340517]
[1746485445229,0.3313895,95076.0,95075.0,0.8340517]
[1746485445823,0.3313895,95076.0,95075.0,0.8330517]
[1746485446025,0.3313895,95076.0,95075.0,0.8340517]
[1746485446829,0.3313895,95076.0,95075.0,0.8330517]
[1746485447026,0.3313895,95076.0,95075.0,0.8340517]
[1746485447931,0.3313895,95076.0,95075.0,0.8330517]
[1746485448133,0.3313895,95076.0,95075.0,0.8340517]
[1746485448633,0.3313895,95076.0,95075.0,0.8330517]
[1746485449027,0.3313895,95076.0,95075.0,0.8340517]
[1746485449231,0.3313895,95076.0,95075.0,0.8330517]
[1746485449430,0.3313895,95076.0,95075.0,0.8340517]
[1746485459851,0.121,95076.0,95075.0,0.8340517]
[1746485460356,0.3313895,95076.0,95075.0,0.8340517]
[1746485463250,0.121,95076.0,95075.0,0.8340517]
[1746485463454,0.3313895,95076.0,95075.0,0.8340517]
[1746485469363,0.3313895,95076.0,95075.0,0.62366]
[1746485471255,0.3323895,95076.0,95075.0,0.62266]
[1746485473863,0.3323895,95076.0,95075.0,0.8330517]
[1746485474255,0.3323895,95076.0,95075.0,0.62266]
[1746485474457,0.3323895,95076.0,95075.0,0.8330517]
[1746485474856,0.3313895,95076.0,95075.0,0.8320517]
[1746485475057,0.3313895,95076.0,95075.0,0.8330517]
[1746485475058,0.3323895,95076.0,95075.0,0.8330517]
[1746485475661,0.3313895,95076.0,95075.0,0.8330517]
[1746485475865,0.3323895,95076.0,95075.0,0.8330517]
[1746485476361,0.3323895,95076.0,95075.0,0.62166]
[1746485476567,0.3323895,95076.0,95075.0,0.62266]
[1746485478368,0.3313895,95076.0,95075.0,0.62266]
[1746485478667,0.3323895,95076.0,95075.0,0.62266]
[1746485480070,0.3323895,95076.0,95075.0,0.62166]
[1746485483272,0.3323895,95076.0,95075.0,0.5521]
[1746485483472,0.3323895,95076.0,95075.0,0.6213]
[1746485484769,0.3323895,95076.0,95075.0,0.5521]
[1746485484961,0.43756951,95076.0,95075.0,0.5]
[1746485485775,0.79836951,95076.0,95075.0,0.5]
[1746485485970,0.79836951,95076.0,95069.0,0.15994619]
[1746485485971,0.2104028,95070.0,95069.0,0.15994619]
[1746485486170,0.6912028,95070.0,95069.0,0.13146689]
[1746485486872,0.7875028,95070.0,95069.0,0.13146689]
[1746485487265,0.2104183,95063.0,95062.0,0.13065098]
[1746485487573,0.5712183,95063.0,95062.0,0.01328168]
[1746485487770,0.6764103,95063.0,95062.0,0.01328168]
[1746485487974,0.0526058,95061.0,95059.0,0.16001668]
[1746485488167,0.3080249,95060.0,95059.0,0.16001668]
[1746485488365,0.4132209,95060.0,95059.0,0.16001668]
[1746485489173,0.5332209,95060.0,95059.0,0.16001668]
[1746485489766,0.5332209,95060.0,95054.0,0.01328168]
[1746485489767,0.210436,95055.0,95054.0,0.01328168]
[1746485490076,0.2104471,95050.0,95049.0,7e-08]
[1746485490280,0.6764551,95050.0,95049.0,7e-08]
[1746485490971,0.7229551,95050.0,95049.0,7e-08]
[1746485491173,0.8489551,95050.0,95049.0,7e-08]
[1746485491774,0.8489551,95050.0,95049.0,0.00065807]
[1746485492577,0.8429551,95050.0,95049.0,0.00065807]
[1746485492777,0.8479551,95050.0,95049.0,0.00065807]
[1746485499381,0.7427471,95050.0,95049.0,0.00065807]
[1746485499570,0.8479551,95050.0,95049.0,0.00065807]
[1746485500269,0.7427471,95050.0,95049.0,0.00065807]
[1746485500471,0.3354471,95050.0,95049.0,0.00065807]
[1746485500677,0.3354471,95050.0,95049.0,0.46110737]
[1746485500982,0.3354471,95050.0,95049.0,0.21110737]
[1746485501283,0.2104471,95050.0,95049.0,0.21110737]
[1746485501472,0.2154471,95050.0,95049.0,0.21110737]
[1746485501673,0.2154471,95050.0,95049.0,0.80930737]
[1746485502373,0.2154471,95050.0,95049.0,0.59885807]
[1746485502769,0.2104471,95050.0,95049.0,0.55095807]
[1746485502979,0.2144471,95050.0,95049.0,0.55095807]
[1746485503284,0.2104692,95040.0,95032.0,0.06904]
[1746485503583,0.2104692,95040.0,95039.0,0.04872966]
[1746485503584,0.5712692,95040.0,95039.0,0.04872966]
[1746485504283,0.7861692,95040.0,95039.0,0.04872966]
[1746485504480,0.7861692,95040.0,95039.0,0.09962966]
[1746485505584,0.7861692,95040.0,95039.0,0.10062966]
[1746485505782,0.4808,95040.0,95039.0,0.10062966]
[1746485505990,0.4808,95040.0,95039.0,0.31110106]
[1746485506283,0.2104648,95043.0,95042.0,0.2104604]
[1746485506484,0.2104648,95043.0,95042.0,0.3069604]
[1746485509385,0.2114648,95043.0,95042.0,0.0965]
[1746485509983,0.2114648,95043.0,95042.0,0.3069648]
[1746485510184,0.21028903,95043.0,95042.0,0.3069648]
[1746485510891,0.21128903,95043.0,95042.0,0.3069648]
[1746485520795,0.001,95043.0,95042.0,0.3069648]
[1746485521391,0.2114626,95043.0,95042.0,0.3069648]
[1746485521781,0.2114626,95043.0,95042.0,0.8069648]
[1746485528192,0.2104626,95043.0,95042.0,0.8069648]
[1746485532803,0.2114626,95043.0,95042.0,0.8069648]
[1746485535603,0.2104626,95043.0,95042.0,0.8069648]
[1746485537607,0.2630747,95045.0,95044.0,0.2104604]
[1746485537904,0.3156584,95057.0,95056.0,0.2104314]
[1746485538101,0.4356584,95057.0,95056.0,0.2104314]
[1746485539805,0.3830494,95057.0,95056.0,0.2104314]
[1746485540000,0.12,95057.0,95056.0,0.2104314]
[1746485540208,0.2104256,95060.0,95059.0,0.2104249]
[1746485540397,0.2104256,95060.0,95059.0,0.3059249]
[1746485540901,0.210423,95064.0,95063.0,0.210415]
[1746485541096,0.2630305,95062.0,95061.0,0.210421]
[1746485541497,0.2104249,95062.0,95061.0,0.210421]
[1746485542103,0.3304249,95062.0,95061.0,0.210421]
[1746485542494,0.12,95062.0,95061.0,0.210421]
[1746485542700,0.12,95062.0,95061.0,0.710421]
[1746485543108,0.2104197,95063.0,95062.0,0.2104205]
[1746485543301,0.2104197,95063.0,95062.0,0.2570205]
[1746485543497,0.2104197,95063.0,95062.0,0.3042205]
[1746485544006,0.2104161,95064.0,95063.0,0.2630223]
[1746485544205,0.2104122,95066.0,95065.0,0.2630123]
[1746485544802,0.2104092,95068.0,95067.0,0.2104094]
[1746485545103,0.3304092,95068.0,95067.0,0.2104094]
[1746485545510,0.3304092,95068.0,95067.0,0.3078094]
[1746485546408,0.3304092,95068.0,95067.0,0.8078094]
[1746485547204,0.3354092,95068.0,95067.0,0.8078094]
[1746485548010,0.125,95068.0,95067.0,0.8078094]
[1746485548210,0.2154072,95068.0,95067.0,0.8078094]
[1746485549113,0.3354072,95068.0,95067.0,0.8078094]
[1746485559219,0.3354072,95068.0,95067.0,0.8764894]
[1746485559825,0.3324072,95068.0,95067.0,0.8764894]
[1746485560724,0.3314072,95068.0,95067.0,0.8764894]
[1746485561225,0.2114072,95068.0,95067.0,0.66608]
[1746485561425,0.2589072,95068.0,95067.0,0.66608]
[1746485562322,0.3789072,95068.0,95067.0,0.66608]
[1746485563029,0.3789072,95068.0,95067.0,0.8764894]
[1746485569533,0.3789072,95068.0,95067.0,0.66608]
[1746485570332,0.3789072,95068.0,95067.0,0.8764894]
[1746485575529,0.3789072,95068.0,95067.0,0.66608]
[1746485577543,0.3314072,95068.0,95067.0,0.8764894]
[1746485577941,0.121,95068.0,95067.0,0.8764894]
[1746485578244,0.001,95068.0,95067.0,0.8764894]
[1746485579746,0.00157878,95070.0,95069.0,0.210405]
[1746485580046,0.00157878,95070.0,95069.0,0.571205]
[1746485581447,0.00157878,95070.0,95069.0,1.071205]
[1746485581946,0.00157878,95070.0,95069.0,1.073205]
[1746485582347,0.00157878,95070.0,95069.0,1.072205]
[1746485582843,0.00157878,95070.0,95069.0,1.073205]
[1746485583444,0.21198158,95070.0,95069.0,1.072205]
[1746485583647,0.21198158,95070.0,95069.0,1.073205]
[1746485585138,0.21198158,95070.0,95069.0,0.712405]
[1746485585340,0.21198158,95070.0,95069.0,1.072205]
[1746485585543,0.21198158,95070.0,95069.0,1.073205]
[1746485585749,0.00157878,95070.0,95069.0,1.073205]
[1746485586446,0.00157878,95070.0,95069.0,0.712405]
[1746485586648,0.00157878,95070.0,95069.0,1.073205]
[1746485587951,0.00157878,95070.0,95069.0,0.712405]
[1746485588252,0.00157878,95070.0,95069.0,1.073205]
[1746485589047,0.00157878,95070.0,95069.0,0.712405]
[1746485589256,0.00157878,95070.0,95069.0,1.073205]
[1746485597950,0.00157878,95070.0,95069.0,1.072205]
[1746485598150,0.00157878,95070.0,95069.0,1.073205]
[1746485601061,0.00157878,95070.0,95069.0,1.074205]
[1746485601762,0.00157878,95070.0,95069.0,1.073205]
[1746485604058,0.00157878,95070.0,95069.0,1.072205]
[1746485604263,0.00157878,95070.0,95069.0,1.073205]
[1746485607668,0.00157878,95070.0,95069.0,1.072205]
[1746485607872,0.00157878,95070.0,95069.0,1.073205]
[1746485608775,0.001,95076.0,95075.0,0.2103917]
[1746485609671,0.001,95076.0,95075.0,0.3499917]
[1746485610069,0.2113895,95076.0,95075.0,0.8499917]
[1746485610273,0.3313895,95076.0,95075.0,0.8499917]
[1746485610866,0.3800895,95076.0,95075.0,0.8499917]
[1746485613274,0.3800895,95076.0,95075.0,0.8025917]
[1746485615481,0.3810895,95076.0,95075.0,0.8025917]
[1746485615987,0.3800895,95076.0,95075.0,0.8025917]
[1746485616280,0.3810895,95076.0,95075.0,0.8025917]
[1746485619576,0.3800895,95076.0,95075.0,0.8025917]
[1746485619777,0.3810895,95076.0,95075.0,0.8025917]
[1746485621394,0.3810895,95076.0,95075.0,0.5922]
[1746485621579,0.3810895,95076.0,95075.0,0.8025917]
[1746485629091,0.3810895,95076.0,95075.0,0.8709117]
[1746485629994,0.7418895,95076.0,95075.0,0.56832]
[1746485630287,0.7890895,95076.0,95075.0,0.56832]
[1746485630883,0.7890895,95076.0,95075.0,0.06832]
[1746485631192,0.7930895,95076.0,95075.0,0.06832]
[1746485631881,0.7880895,95076.0,95075.0,0.06832]
[1746485632082,0.7920895,95076.0,95075.0,0.06832]
[1746485637486,0.2104094,95067.0,95066.0,0.1451]
[1746485637684,0.2104094,95067.0,95066.0,0.21342]
[1746485637884,0.2104094,95067.0,95066.0,0.4238317]
[1746485638092,0.3304094,95067.0,95066.0,0.9238317]
[1746485638283,0.4270094,95067.0,95066.0,0.71342]
[1746485640195,0.4270094,95067.0,95066.0,0.9238317]
[1746485640581,0.3304094,95067.0,95066.0,0.9238317]
[1746485641498,0.3334094,95067.0,95066.0,0.9238317]
[1746485642091,0.3304094,95067.0,95066.0,0.9238317]
[1746485642293,0.3314094,95067.0,95066.0,0.9238317]
[1746485642795,0.121,95067.0,95066.0,0.9238317]
[1746485643185,0.001,95067.0,95066.0,0.9238317]
[1746485644893,0.001,95076.0,95075.0,0.2103917]
[1746485645491,0.001,95076.0,95075.0,0.3052917]
[1746485646390,0.001,95076.0,95075.0,0.8052917]
[1746485647198,0.004,95076.0,95075.0,0.8052917]
[1746485655603,0.5751895,95076.0,95075.0,0.61362]
[1746485655801,0.5751895,95076.0,95075.0,0.5]
[1746485656197,0.7887895,95076.0,95075.0,0.5]
[1746485656504,0.2103962,95073.0,95072.0,0.06812]
[1746485657095,0.3303962,95073.0,95072.0,0.06812]
[1746485657704,0.3323962,95073.0,95072.0,0.56812]
[1746485662804,0.3323962,95073.0,95072.0,0.5]
[1746485663011,0.3323962,95073.0,95072.0,0.7785184]
[1746485663206,0.3323962,95073.0,95072.0,0.56812]
[1746485663408,0.3808962,95073.0,95072.0,0.56812]
[1746485664102,0.3808962,95073.0,95072.0,0.61772]
[1746485664511,0.4312962,95073.0,95072.0,0.61772]
[1746485667418,0.4312962,95073.0,95072.0,0.8281184]
[1746485668004,0.3323962,95073.0,95072.0,0.8281184]
[1746485668205,0.122,95073.0,95072.0,0.8281184]
[1746485669415,0.002,95073.0,95072.0,0.8281184]
[1746485670009,0.001,95076.0,95075.0,0.2103917]
[1746485670814,0.001,95076.0,95075.0,0.2565917]
[1746485671417,0.001,95076.0,95075.0,0.7565917]
[1746485677815,0.0015,95080.0,95079.0,0.2103829]
[1746485678618,0.0015,95080.0,95079.0,0.31025011]
[1746485678923,0.0015,95080.0,95079.0,0.81025011]
[1746485679621,0.0025,95080.0,95079.0,0.81025011]
[1746485679824,0.2103488,95095.0,95089.0,0.2103608]
[1746485680025,0.0525859,95097.0,95089.0,0.2782808]
[1746485680221,0.12157822,95090.0,95089.0,0.2782808]
[1746485680423,0.12157822,95090.0,95089.0,0.3730808]
[1746485681129,0.00157822,95090.0,95089.0,0.8730808]
[1746485681728,0.00157822,95090.0,95089.0,0.89504667]
[1746485682119,0.00457822,95090.0,95089.0,0.89504667]
[1746485686325,0.001,95106.0,95105.0,0.2103254]
[1746485686533,0.001,95106.0,95105.0,0.2782454]
[1746485686728,0.0468,95106.0,95105.0,0.3703454]
[1746485687232,0.1668,95106.0,95105.0,0.3703454]
[1746485687530,0.3771232,95106.0,95105.0,0.3703454]
[1746485687725,0.4235232,95106.0,95105.0,0.3703454]
[1746485688640,0.1674,95106.0,95105.0,0.8703454]
[1746485688932,0.124,95106.0,95105.0,0.8703454]
[1746485689826,0.3343232,95106.0,95105.0,0.8703454]
[1746485690634,0.124,95106.0,95105.0,0.8703454]
[1746485691032,0.3343232,95106.0,95105.0,0.8703454]
[1746485691230,0.124,95106.0,95105.0,0.8703454]
[1746485695431,0.1725,95106.0,95105.0,0.8703454]
[1746485695631,0.221,95106.0,95105.0,0.8703454]
[1746485699146,0.101,95106.0,95105.0,0.8703454]
[1746485706251,0.221,95106.0,95105.0,0.8236454]
[1746485711363,0.1725,95106.0,95105.0,0.8720454]
[1746485712365,0.124,95106.0,95105.0,0.8720454]
[1746485714069,0.004,95106.0,95105.0,0.8720454]
[1746485715265,0.124,95106.0,95105.0,0.8720454]
[1746485715567,0.1717,95106.0,95105.0,0.8720454]
[1746485716071,0.218,95106.0,95105.0,0.8720454]
[1746485721377,0.218,95106.0,95105.0,0.8718454]
[1746485723768,0.4283232,95106.0,95105.0,0.56772]
[1746485725177,0.4283232,95106.0,95105.0,0.7780454]
[1746485725676,0.218,95106.0,95105.0,0.7780454]
[1746485727181,0.4283232,95106.0,95105.0,0.7780454]
[1746485732286,0.4283232,95106.0,95105.0,0.7103254]
[1746485732585,0.4283232,95106.0,95105.0,0.7780454]
[1746485739276,0.5334712,95106.0,95105.0,0.5]
[1746485739791,0.210332,95102.0,95101.0,0.06756]
[1746485740093,0.330332,95102.0,95101.0,0.06756]
[1746485740687,0.423432,95102.0,95101.0,0.56756]
[1746485741591,0.426432,95102.0,95101.0,0.56756]
[1746485744082,0.426432,95102.0,95101.0,0.7778942]
[1746485745289,0.426432,95102.0,95101.0,0.8279942]
[1746485745485,0.123,95102.0,95101.0,1.1887942]
[1746485746192,0.003,95102.0,95101.0,1.1887942]
[1746485749996,0.003,95102.0,95101.0,0.8279942]
[1746485750294,0.003,95102.0,95101.0,1.1887942]
[1746485755096,0.213332,95102.0,95101.0,1.1887942]
[1746485755298,0.333332,95102.0,95101.0,1.1887942]
[1746485755798,0.123,95102.0,95101.0,1.1887942]
[1746485756097,0.003,95102.0,95101.0,1.1887942]
[1746485757196,0.213332,95102.0,95101.0,1.1887942]
[1746485757393,0.003,95102.0,95101.0,1.1887942]
[1746485758499,0.213332,95102.0,95101.0,1.1887942]
[1746485759192,0.333332,95102.0,95101.0,1.2347942]
[1746485765607,0.381432,95102.0,95101.0,1.2347942]
[1746485766906,0.381432,95102.0,95101.0,0.8739942]
[1746485769410,0.381432,95102.0,95101.0,0.546]
[1746485769605,0.791332,95102.0,95101.0,0.56744]
[1746485769904,0.2629398,95093.0,95092.0,0.06744]
[1746485770305,0.2103586,95090.0,95085.0,0.16004304]
[1746485770608,0.2103652,95087.0,95086.0,0.06744]
[1746485770904,0.2103674,95086.0,95085.0,0.01719796]
[1746485771096,0.2103696,95085.0,95084.0,0.16004304]
[1746485771298,0.3155376,95085.0,95084.0,0.16004304]
[1746485771503,0.6614376,95085.0,95084.0,0.17724276]
[1746485771809,0.4114376,95085.0,95084.0,0.17724276]
[1746485772013,0.4114376,95085.0,95084.0,0.16004304]
[1746485772201,0.5324376,95085.0,95084.0,0.16004304]
[1746485772511,0.4272696,95085.0,95084.0,0.38773927]
[1746485773403,0.4272696,95085.0,95084.0,0.48133927]
[1746485773913,0.4272696,95085.0,95084.0,0.98133927]
[1746485775014,0.4272696,95085.0,95084.0,0.82129623]
[1746485781424,0.4272696,95085.0,95084.0,0.56372443]
[1746485782123,0.4272696,95085.0,95084.0,0.51732443]
[1746485782327,0.5324376,95085.0,95084.0,0.51732443]
[1746485783818,0.5324376,95085.0,95084.0,0.01732443]
[1746485784020,0.210374,95083.0,95082.0,0.00262847]
[1746485784329,0.571174,95083.0,95082.0,0.00262847]
[1746485785124,0.692174,95083.0,95082.0,0.00262847]
[1746485786932,0.797346,95083.0,95082.0,0.00262847]
[1746485789029,0.692174,95083.0,95082.0,0.00262847]
[1746485794129,0.797346,95083.0,95082.0,0.00262847]
[1746485794635,0.436546,95083.0,95082.0,0.00262847]
[1746485794930,0.797346,95083.0,95082.0,0.00262847]
[1746485797836,0.797346,95083.0,95082.0,0.05152847]
[1746485800140,0.692174,95083.0,95082.0,0.05152847]
[1746485800734,0.68954564,95083.0,95082.0,0.0489]
[1746485804748,0.32874564,95083.0,95082.0,0.0489]
[1746485805047,0.68954564,95083.0,95082.0,0.0489]
[1746485810857,0.32874564,95083.0,95082.0,0.0489]
[1746485811056,0.68954564,95083.0,95082.0,0.0489]
[1746485814751,0.68954564,95083.0,95082.0,0.2592763]
[1746485815160,0.56954564,95083.0,95082.0,0.2592763]
[1746485815852,0.56954564,95083.0,95082.0,0.7592763]
[1746485822551,0.56954564,95083.0,95082.0,0.5489]
[1746485822966,0.56954564,95083.0,95082.0,0.5]
[1746485823165,0.78774564,95083.0,95082.0,0.5]
[1746485823557,0.2103785,95081.0,95080.0,0.0487]
[1746485824169,0.3303785,95081.0,95080.0,0.0487]
[1746485824873,0.3313785,95081.0,95080.0,0.0487]
[1746485825074,0.3323785,95081.0,95080.0,0.0487]
[1746485826470,0.3333785,95081.0,95080.0,0.0487]
[1746485828272,0.2103851,95078.0,95077.0,0.01740239]
[1746485828579,0.2103873,95077.0,95076.0,0.0459]
[1746485828775,0.2575873,95077.0,95076.0,0.0459]
[1746485829075,0.3775873,95077.0,95076.0,0.0459]
[1746485829670,0.3775873,95077.0,95076.0,0.05384642]
[1746485830278,0.3785873,95077.0,95076.0,0.05384642]
[1746485830482,0.3785873,95077.0,95076.0,0.0459]
[1746485831872,0.3795873,95077.0,95076.0,0.0459]
[1746485835375,0.3795873,95077.0,95076.0,0.1451]
[1746485856794,0.3795873,95077.0,95076.0,0.3554895]
[1746485858593,0.3795873,95077.0,95076.0,0.1451]
[1746485859402,0.3323873,95077.0,95076.0,0.3554895]
[1746485860194,0.2123873,95077.0,95076.0,0.3554895]
[1746485860789,0.002,95077.0,95076.0,0.3554895]
[1746485861093,0.2123873,95077.0,95076.0,0.8554895]
[1746485861496,0.002,95077.0,95076.0,0.8554895]
[1746485867803,0.001,95077.0,95076.0,0.8554895]
[1746485868105,0.001,95077.0,95076.0,0.8564895]
[1746485868299,0.2103808,95080.0,95079.0,0.2103829]
[1746485869108,0.2103808,95080.0,95079.0,0.3030829]
[1746485869703,0.2103808,95080.0,95079.0,0.3040829]
[1746485870097,0.2103808,95080.0,95079.0,0.8040829]
[1746485883915,0.3039808,95080.0,95079.0,0.5458]
[1746485884313,0.3039808,95080.0,95079.0,0.501]
[1746485885105,0.4239808,95080.0,95079.0,0.501]
[1746485885312,0.4239808,95080.0,95079.0,0.001]
[1746485885817,0.2103895,95076.0,95075.0,0.00796091]
[1746485886011,0.2103917,95075.0,95074.0,0.22676048]
[1746485886214,0.3759917,95075.0,95074.0,0.01636698]
[1746485886414,0.3759917,95075.0,95072.0,0.0525894]
[1746485886415,0.2103962,95073.0,95072.0,0.0525894]
[1746485886615,0.5711962,95073.0,95072.0,0.0525894]
[1746485887121,0.6203962,95073.0,95072.0,0.0525894]
[1746485887319,0.7403962,95073.0,95072.0,0.0525894]
[1746485887823,0.7403962,95073.0,95072.0,0.5525894]
[1746485888007,0.7413962,95073.0,95072.0,0.5525894]
[1746485888922,0.7423962,95073.0,95072.0,0.56776867]
[1746485901530,0.7882962,95073.0,95072.0,0.56776867]
[1746485904228,0.7882962,95073.0,95072.0,0.06776867]
[1746485908032,0.7882962,95073.0,95072.0,0.11506867]
[1746485908433,0.4274962,95073.0,95072.0,0.11506867]
[1746485908634,0.7882962,95073.0,95072.0,0.11506867]
[1746485909637,0.7882962,95073.0,95072.0,0.32546707]
[1746485909933,0.7390962,95073.0,95072.0,0.32546707]
[1746485910932,0.4828,95073.0,95072.0,0.32546707]
[1746485911229,0.122,95073.0,95072.0,0.32546707]
[1746485912238,0.002,95073.0,95072.0,0.82546707]
[1746485917138,0.002,95073.0,95072.0,0.94546707]
[1746485919240,0.002,95073.0,95072.0,0.82546707]
[1746485924747,0.2123962,95073.0,95072.0,0.82546707]
[1746485925141,0.3323962,95073.0,95072.0,0.82546707]
[1746485925643,0.3797962,95073.0,95072.0,0.82546707]
[1746485926746,0.3787962,95073.0,95072.0,0.82546707]
[1746485926948,0.3777962,95073.0,95072.0,0.82546707]
[1746485937552,0.1674,95073.0,95072.0,0.82546707]
[1746485940253,0.0474,95073.0,95072.0,0.82546707]
[1746485941249,0.14489822,95073.0,95072.0,0.82546707]
[1746485943458,0.19229822,95073.0,95072.0,0.82546707]
[1746485945253,0.07229822,95073.0,95072.0,0.82546707]
[1746485949054,0.19229822,95073.0,95072.0,0.82546707]
[1746485949652,0.1674,95073.0,95072.0,0.82546707]
[1746485950652,0.3777962,95073.0,95072.0,0.82546707]
[1746485951047,0.3777962,95073.0,95072.0,0.89234707]
[1746485951253,0.0474,95073.0,95072.0,0.89234707]
[1746485952555,0.2577962,95073.0,95072.0,0.89234707]
[1746485953260,0.0474,95073.0,95072.0,0.89234707]
[1746485955069,0.1674,95073.0,95072.0,0.89234707]
[1746485955558,0.3777962,95073.0,95072.0,0.89222707]
[1746485955959,0.3777962,95073.0,95072.0,0.63452867]
[1746485956559,0.3777962,95073.0,95072.0,0.84492707]
[1746485957562,0.3787962,95073.0,95072.0,0.84492707]
[1746485959065,0.3797962,95073.0,95072.0,0.84492707]
[1746485981396,0.1694,95073.0,95072.0,0.84492707]
[1746485981601,0.122,95073.0,95072.0,0.84492707]
[1746485982097,0.002,95073.0,95072.0,0.84492707]
[1746485998607,0.002,95073.0,95072.0,1.20572707]
[1746486004215,0.002,95073.0,95072.0,0.99516867]
[1746486004508,0.2123962,95073.0,95072.0,0.63436867]
[1746486004705,0.2123962,95073.0,95072.0,0.84476707]
[1746486005103,0.3323962,95073.0,95072.0,0.84476707]
[1746486005412,0.4247962,95073.0,95072.0,0.84476707]
[1746486008209,0.122,95073.0,95072.0,1.20556707]
[1746486009115,0.002,95073.0,95072.0,1.20556707]
[1746486009819,0.0484,95084.0,95083.0,0.210374]
[1746486010018,0.2629612,95087.0,95086.0,0.2103674]
[1746486010209,0.3829612,95087.0,95086.0,0.2103674]
[1746486011327,0.12062855,95092.0,95091.0,0.2103563]
[1746486011620,0.3712197,95101.0,95100.0,0.2103364]
[1746486011820,0.3712197,95101.0,95100.0,0.6377364]
[1746486012417,0.2103342,95101.0,95100.0,0.6869364]
[1746486012618,0.3062342,95101.0,95100.0,0.6869364]
[1746486013020,0.0959,95101.0,95100.0,1.1869364]
[1746486013222,0.3062342,95101.0,95100.0,1.1869364]
[1746486013422,0.3062342,95101.0,95100.0,1.2349364]
[1746486014521,0.3082342,95101.0,95100.0,1.2349364]
[1746486015322,0.3082342,95101.0,95100.0,0.5666]
[1746486015513,0.3082342,95101.0,95100.0,0.5]
[1746486016423,0.4282342,95101.0,95100.0,0.5]
[1746486016624,0.2103453,95096.0,95095.0,0.2103475]
[1746486016824,0.5711453,95096.0,95095.0,0.2103475]
[1746486017326,0.6911453,95096.0,95095.0,0.2103475]
[1746486017521,0.2629447,95093.0,95092.0,0.210352]
[1746486017722,0.052589,95092.0,95089.0,0.0471]
[1746486017922,0.2103586,95090.0,95089.0,0.2574586]
[1746486018229,0.3303586,95090.0,95089.0,0.2574586]
[1746486018430,0.4224586,95090.0,95089.0,0.2574586]
[1746486018825,0.4224586,95090.0,95089.0,0.7103586]
[1746486019927,0.4224586,95090.0,95089.0,0.7579586]
[1746486021031,0.4234586,95090.0,95089.0,0.7579586]
[1746486023024,0.3775586,95090.0,95089.0,0.7579586]
[1746486023231,0.3775586,95090.0,95089.0,0.8541586]
[1746486024532,0.1672,95090.0,95089.0,0.8541586]
[1746486024737,0.121,95090.0,95089.0,0.8541586]
[1746486025133,0.001,95090.0,95089.0,0.8541586]
[1746486028335,0.0503,95111.0,95105.0,0.2103254]
[1746486028542,0.2103193,95108.0,95105.0,0.2767654]
[1746486028838,0.2103217,95107.0,95105.0,0.2767654]
[1746486029034,0.2113232,95106.0,95105.0,0.2767654]
[1746486029233,0.2617232,95106.0,95105.0,0.3682654]
[1746486029435,0.0544,95106.0,95105.0,0.3682654]
[1746486030131,0.1744,95106.0,95105.0,0.3682654]
[1746486030332,0.124,95106.0,95105.0,0.3682654]
[1746486031036,0.124,95106.0,95105.0,0.97341339]
[1746486031341,0.004,95106.0,95105.0,1.09341339]
[1746486033640,0.0504,95120.0,95114.0,0.2103055]
[1746486034236,0.2102856,95123.0,95114.0,0.2103055]
[1746486034643,0.0035,95115.0,95114.0,0.2103055]
[1746486035142,0.0035,95115.0,95114.0,0.7103055]
[1746486036042,0.0035,95115.0,95114.0,0.72372452]
[1746486037443,0.0015,95115.0,95114.0,0.72372452]
[1746486038247,0.0015,95115.0,95114.0,0.79016452]
[1746486040843,0.0015,95115.0,95114.0,0.89046452]
[1746486057253,0.0015,95115.0,95114.0,0.82402452]
[1746486057560,0.0015,95115.0,95114.0,0.89030452]
[1746486063360,0.35589465,95130.0,95127.0,0.0525691]
[1746486063569,0.0499,95129.0,95128.0,0.3747231]
[1746486063870,0.0499,95129.0,95128.0,0.4704231]
[1746486064268,0.0499,95129.0,95128.0,0.4178545]
[1746486064475,0.0999,95129.0,95128.0,0.4178545]
[1746486064775,0.0999,95129.0,95128.0,0.9178545]
[1746486065966,0.0999,95129.0,95128.0,0.92577722]
[1746486066273,0.3101723,95129.0,95128.0,0.87597722]
[1746486066474,0.1463,95129.0,95128.0,0.83007722]
[1746486067064,0.2663,95129.0,95128.0,0.83007722]
[1746486071874,0.2199,95129.0,95128.0,0.83007722]
[1746486072080,0.1699,95129.0,95128.0,0.83007722]
[1746486072271,0.0499,95129.0,95128.0,0.83007722]
[1746486073076,0.1699,95129.0,95128.0,0.83007722]
[1746486074077,0.0499,95129.0,95128.0,0.83007722]
[1746486078977,0.0499,95129.0,95128.0,0.87717722]
[1746486083178,0.0969,95129.0,95128.0,0.87717722]
[1746486084079,0.2169,95129.0,95128.0,0.87717722]
[1746486087185,0.12,95129.0,95128.0,0.87717722]
[1746486087379,0.1676,95129.0,95128.0,0.87717722]
[1746486088284,0.0476,95129.0,95128.0,0.87717722]
[1746486095890,0.0476,95129.0,95128.0,0.81089722]
[1746486096083,0.0476,95129.0,95128.0,0.87705722]
[1746486112304,0.10711117,95134.0,95128.0,0.66678272]
[1746486112503,0.2102645,95133.0,95132.0,0.2102635]
[1746486113005,0.2102645,95133.0,95132.0,0.2762635]
[1746486113206,0.3302645,95133.0,95132.0,0.2762635]
[1746486114407,0.3302645,95133.0,95132.0,0.7762635]
[1746486117308,0.3302645,95133.0,95132.0,0.566]
[1746486117502,0.3302645,95133.0,95132.0,0.7762657]
[1746486117697,0.3302645,95133.0,95132.0,0.566]
[1746486117991,0.3797645,95133.0,95132.0,0.7762657]
[1746486119905,0.3797645,95133.0,95132.0,0.5]
[1746486120108,0.7405645,95133.0,95132.0,0.5]
[1746486120800,0.7906645,95133.0,95132.0,0.5]
[1746486121206,0.2102701,95130.0,95129.0,0.2102717]
[1746486122099,0.2102723,95129.0,95128.0,0.00792272]
[1746486122301,0.2102745,95128.0,95127.0,0.2762767]
[1746486122503,0.3042745,95128.0,95127.0,0.2762767]
[1746486122898,0.3042745,95128.0,95127.0,0.28412483]
[1746486123099,0.4242745,95128.0,95127.0,0.07384813]
[1746486123809,0.4242745,95128.0,95127.0,0.57384813]
[1746486127911,0.4242745,95128.0,95127.0,0.07384813]
[1746486129617,0.4242745,95128.0,95127.0,0.11904813]
[1746486132106,0.4728745,95128.0,95127.0,0.11904813]
[1746486132612,0.4728745,95128.0,95127.0,0.05304813]
[1746486138118,0.8336745,95128.0,95127.0,0.05304813]